fUSD/lending_fUSD_20241216
["ID","MTS","AMOUNT","RATE_DAILY","PERIOD"]
[345589851,1734372640263,-500.0,0.00024,30]
[345589853,1734372640272,-500.0,0.00024,30]
[345589855,1734372640281,-500.0,0.00024,30]
[345589857,1734372640291,-500.0,0.00024,30]
[345589859,1734372640301,-500.0,0.00024,30]
[345589861,1734372640310,-500.0,0.00024,30]
[345589863,1734372640320,-500.0,0.00024,30]
[345589865,1734372640329,-500.0,0.00024,30]
[345589867,1734372640339,-500.0,0.00024,30]
[345589869,1734372640348,-500.0,0.00024,30]
[345589871,1734372640358,-500.0,0.00024,30]
[345589873,1734372640367,-5000.0,0.00024,2]
[345589875,1734372640376,-25220.0,0.00024,7]
[345589877,1734372640386,-1100.0,0.00024,8]
[345589879,1734372640395,-425.01395619,0.00024005,2]
[345589881,1734372640404,-151.06750231,0.00024018,2]
[345589883,1734372640418,-2555.633,0.0002407,5]
[345589885,1734372640427,-6032.0,0.000241,3]
[345589887,1734372640436,-1700.0,0.000241,8]
[345589889,1734372640445,-1000.0,0.00024104,2]
[345589891,1734372640455,-150.0,0.00024153,4]
[345589893,1734372640464,-150.0,0.00024153,4]
[345589894,1734372640473,-2300.0,0.000242,8]
[345589896,1734372640482,-425.01395619,0.00024208,2]
[345589898,1734372640491,-158.52960383,0.00024233,2]
[345589900,1734372640500,-500.0,0.00024235,7]
[345589902,1734372640510,-1172.0,0.0002425,2]
[345589905,1734372640520,-278.37,0.0002425,2]
[345589907,1734372640530,-7500.0,0.00024255,2]
[345589908,1734372640539,-150.0,0.0002426,2]
[345589924,1734372640677,-13738.0,0.0002426,2]
[345589926,1734372640688,-3882.0,0.0002426,2]
[345589928,1734372640697,-1099.0,0.0002426,2]
[345589930,1734372640706,-1644.72354276,0.00024262,2]
[345589932,1734372640716,-834.36110435,0.00024264,2]
[345589934,1734372640725,-153.45,0.00024296,2]
[345589936,1734372640734,-975.93,0.00024296,2]
[345589938,1734372640744,-293.94,0.00024296,2]
[345589940,1734372640754,-150.0,0.00024296,2]
[345589942,1734372640763,-723.96,0.00024296,2]
[345589944,1734372640773,-152.68,0.00024296,2]
[345589946,1734372640782,-2900.0,0.000243,8]
[345589948,1734372640791,-151.06750231,0.00024312,2]
[345589950,1734372640800,-1644.72354274,0.00024333,2]
[345589952,1734372640809,-1056.0,0.00024359,2]
[345589954,1734372640818,-150.0,0.00024362,4]
[345589956,1734372640827,-5816.7602,0.000244,2]
[345589958,1734372640837,-500.0,0.000244,8]
[345589960,1734372640846,-429.01855293,0.000244,2]
[345589962,1734372640855,-1062.37738169,0.00024402,2]
[345589964,1734372640864,-1644.72354274,0.00024404,2]
[345589966,1734372640873,-769.47,0.00024465,2]
[345589968,1734372640883,-1644.72354274,0.00024475,2]
[345589970,1734372640892,-425.01395619,0.00024488,2]
[345589972,1734372640901,-1005.74425926,0.000245,2]
[345589974,1734372640915,-1123.96061675,0.000245,2]
[345589976,1734372640925,-64853.0,0.000245,2]
[345589978,1734372640934,-5005.0,0.000245,2]
[345589980,1734372640943,-1172.0,0.000245,2]
[345589982,1734372640953,-297.05288273,0.000245,7]
[345589984,1734372640962,-150.6907154,0.000245,2]
[345589986,1734372640972,-500.0,0.000245,8]
[345589988,1734372640982,-500.0,0.00024508,7]
[345589990,1734372640991,-247.0,0.0002453,2]
[345589992,1734372641000,-153.0,0.00024541,2]
[345589994,1734372641009,-153.0,0.00024541,2]
[345589996,1734372641018,-153.0,0.00024541,2]
[345589998,1734372641027,-153.0,0.00024541,2]
[345590000,1734372641037,-153.0,0.00024541,2]
[345590002,1734372641046,-153.0,0.00024541,2]
[345590004,1734372641055,-1644.72354274,0.00024546,2]
[345590006,1734372641065,-5000.0,0.00024557,2]
[345590008,1734372641075,-158.52960383,0.00024567,2]
[345590010,1734372641084,-150.0,0.0002457,4]
[345590012,1734372641093,-150.0,0.0002457,4]
[345590014,1734372641104,-500.0,0.000246,8]
[345590016,1734372641113,-151.06750231,0.00024606,2]
[345590018,1734372641123,-1644.72354274,0.00024616,2]
[345590020,1734372641133,-192.62018324,0.00024647,2]
[345590022,1734372641146,-520.03511968,0.00024657,4]
[345590024,1734372641160,-500.0,0.00024657,4]
[345590026,1734372641170,-500.0,0.00024657,4]
[345590028,1734372641179,-500.0,0.00024657,4]
[345590030,1734372641189,-500.0,0.00024657,4]
[345590032,1734372641199,-500.0,0.00024657,4]
[345590034,1734372641209,-500.0,0.00024657,4]
[345590036,1734372641218,-635.64416601,0.00024657,4]
[345590039,1734372641228,-500.0,0.00024657,4]
[345590040,1734372641240,-500.0,0.00024657,4]
[345590042,1734372641249,-500.0,0.00024657,4]
[345590045,1734372641258,-500.0,0.00024657,4]
[345590047,1734372641267,-500.0,0.00024657,4]
[345590048,1734372641277,-500.0,0.00024657,4]
[345590051,1734372641286,-500.0,0.00024657,4]
[345590053,1734372641296,-500.0,0.00024657,4]
[345590054,1734372641305,-500.0,0.00024657,4]
[345590056,1734372641314,-500.0,0.00024657,4]
[345590058,1734372641325,-500.0,0.00024657,4]
[345590060,1734372641334,-500.0,0.00024657,4]
[345590062,1734372641343,-500.0,0.00024657,4]
[345590064,1734372641353,-500.0,0.00024657,4]
[345590066,1734372641362,-500.0,0.00024657,4]
[345590068,1734372641371,-500.0,0.00024657,4]
[345590070,1734372641380,-500.0,0.00024657,4]
[345590072,1734372641390,-500.0,0.00024657,4]
[345590074,1734372641399,-213.1596574,0.00024657,4]
[345590076,1734372641414,-574.85253924,0.00024657,4]
[345590078,1734372641423,-500.0,0.00024657,4]
[345590080,1734372641433,-314.79008727,0.00024657,4]
[345590082,1734372641442,-339.59245238,0.00024657,4]
[345590084,1734372641451,-408.85157936,0.00024657,4]
[345590086,1734372641460,-613.64,0.00024657,4]
[345590088,1734372641469,-436.39804014,0.00024657,2]
[345590090,1734372641479,-500.0,0.00024657,4]
[345590092,1734372641488,-500.0,0.00024657,4]
[345590094,1734372641497,-500.0,0.00024657,4]
[345590096,1734372641507,-577.1400002,0.00024657,4]
[345590098,1734372641515,-500.0,0.00024657,4]
[345590100,1734372641524,-500.0,0.00024657,4]
[345590102,1734372641534,-500.0,0.00024657,4]
[345590104,1734372641543,-500.0,0.00024657,4]
[345590106,1734372641554,-500.0,0.00024657,4]
[345590108,1734372641563,-631.14284126,0.00024657,4]
[345590110,1734372641573,-500.0,0.00024657,4]
[345590112,1734372641582,-500.0,0.00024657,4]
[345590114,1734372641594,-500.0,0.00024657,4]
[345590116,1734372641603,-500.0,0.00024657,4]
[345590118,1734372641613,-500.0,0.00024657,4]
[345590120,1734372641622,-366.45,0.00024657,4]
[345590123,1734372641633,-500.0,0.00024657,4]
[345590125,1734372641643,-500.0,0.00024657,4]
[345590127,1734372641657,-500.0,0.00024657,4]
[345590129,1734372641670,-302.38598128,0.00024657,4]
[345590130,1734372641681,-500.0,0.00024657,4]
[345590133,1734372641690,-500.0,0.00024657,4]
[345590134,1734372641699,-597.97505058,0.00024657,4]
[345590136,1734372641708,-294.55228616,0.00024657,4]
[345590138,1734372641718,-500.0,0.00024657,2]
[345590140,1734372641727,-508.6039161,0.00024657,4]
[345590142,1734372641736,-500.0,0.00024657,4]
[345590144,1734372641745,-500.0,0.00024657,2]
[345590146,1734372641755,-500.0,0.00024657,2]
[345590148,1734372641764,-512.88659034,0.00024657,4]
[345590150,1734372641773,-512.99059377,0.00024657,4]
[345590152,1734372641782,-500.0,0.00024657,4]
[345590154,1734372641792,-500.0,0.00024657,4]
[345590156,1734372641802,-506.68403248,0.00024657,4]
[345590158,1734372641811,-510.88463902,0.00024657,4]
[345590160,1734372641821,-500.0,0.00024657,4]
[345590162,1734372641831,-500.0,0.00024657,4]
[345590164,1734372641841,-519.07420115,0.00024657,4]
[345590166,1734372641850,-524.3421285,0.00024657,4]
[345590168,1734372641860,-506.22607263,0.00024657,4]
[345590170,1734372641869,-471.08651115,0.00024657,4]
[345590173,1734372641879,-506.94460141,0.00024657,4]
[345590175,1734372641889,-500.0,0.00024657,4]
[345590177,1734372641898,-500.0,0.00024657,4]
[345590179,1734372641916,-500.0,0.00024657,4]
[345590181,1734372641926,-504.31896778,0.00024657,4]
[345590183,1734372641937,-500.0,0.00024657,4]
[345590184,1734372641947,-638.98322005,0.00024657,4]
[345590186,1734372641956,-500.0,0.00024657,4]
[345590188,1734372641965,-500.0,0.00024657,4]
[345590191,1734372641975,-500.0,0.00024657,4]
[345590193,1734372641984,-500.0,0.00024657,4]
[345590194,1734372641994,-500.0,0.00024657,4]
[345590197,1734372642003,-330.00538622,0.00024657,4]
[345590199,1734372642012,-500.0,0.00024657,4]
[345590201,1734372642021,-500.0,0.00024657,4]
[345590202,1734372642031,-500.0,0.00024657,4]
[345590204,1734372642040,-500.0,0.00024657,4]
[345590206,1734372642049,-500.0,0.00024657,4]
[345590208,1734372642058,-500.0,0.00024657,4]
[345590210,1734372642067,-500.0,0.00024657,4]
[345590212,1734372642076,-500.0,0.00024657,4]
[345590214,1734372642085,-500.0,0.00024657,4]
[345590216,1734372642095,-500.0,0.00024657,4]
[345590218,1734372642104,-500.0,0.00024657,4]
[345590220,1734372642113,-500.0,0.00024657,4]
[345590222,1734372642122,-500.0,0.00024657,4]
[345590224,1734372642131,-500.0,0.00024657,4]
[345590226,1734372642141,-500.0,0.00024657,4]
[345590228,1734372642150,-500.0,0.00024657,4]
[345590230,1734372642166,-500.0,0.00024657,4]
[345590232,1734372642175,-277.30116649,0.00024657,4]
[345590234,1734372642184,-500.0,0.00024657,4]
[345590236,1734372642195,-500.0,0.00024657,4]
[345590238,1734372642205,-500.0,0.00024657,4]
[345590240,1734372642214,-534.34895284,0.00024657,4]
[345590242,1734372642223,-490.81580216,0.00024657,4]
[345590244,1734372642232,-500.0,0.00024657,4]
[345590246,1734372642241,-500.0,0.00024657,4]
[345590248,1734372642250,-500.0,0.00024657,4]
[345590250,1734372642260,-169.74489954,0.00024657,4]
[345590252,1734372642269,-500.0,0.00024657,4]
[345590254,1734372642278,-500.0,0.00024657,4]
[345590256,1734372642287,-500.0,0.00024657,4]
[345590258,1734372642296,-500.0,0.00024657,4]
[345590260,1734372642305,-500.0,0.00024657,4]
[345590262,1734372642314,-500.0,0.00024657,4]
[345590264,1734372642323,-578.06133414,0.00024657,4]
[345590266,1734372642332,-500.0,0.00024657,4]
[345590268,1734372642341,-391.64,0.00024657,4]
[345590270,1734372642350,-500.0,0.00024657,4]
[345590272,1734372642359,-505.99657358,0.00024657,4]
[345590274,1734372642368,-500.0,0.00024657,4]
[345590276,1734372642379,-500.0,0.00024657,4]
[345590278,1734372642388,-500.0,0.00024657,4]
[345590280,1734372642397,-500.0,0.00024657,4]
[345590282,1734372642412,-500.0,0.00024657,4]
[345590284,1734372642421,-500.0,0.00024657,4]
[345590286,1734372642431,-500.0,0.00024657,4]
[345590288,1734372642440,-500.0,0.00024657,4]
[345590290,1734372642449,-500.0,0.00024657,4]
[345590292,1734372642459,-2957.99,0.00024657,4]
[345590294,1734372642468,-2957.99,0.00024657,4]
[345590296,1734372642477,-277.9479236,0.00024657,4]
[345590298,1734372642485,-580.94,0.00024657,4]
[345590300,1734372642494,-500.0,0.00024657,4]
[345590302,1734372642503,-152.093937,0.00024657,4]
[345590304,1734372642513,-500.0,0.00024657,4]
[345590306,1734372642523,-150.691116,0.00024657,4]
[345590308,1734372642533,-150.883924,0.00024657,4]
[345590310,1734372642542,-500.0,0.00024657,4]
[345590312,1734372642551,-500.0,0.00024657,4]
[345590314,1734372642560,-500.0,0.00024657,4]
[345590316,1734372642570,-500.0,0.00024657,4]
[345590318,1734372642580,-500.0,0.00024657,4]
[345590320,1734372642589,-500.0,0.00024657,4]
[345590322,1734372642598,-500.0,0.00024657,4]
[345590324,1734372642607,-500.0,0.00024657,4]
[345590326,1734372642616,-411.18,0.00024657,4]
[345590328,1734372642626,-578.90995675,0.00024657,4]
[345590330,1734372642635,-500.0,0.00024657,4]
[345590332,1734372642643,-500.0,0.00024657,4]
[345590334,1734372642652,-500.0,0.00024657,4]
[345590336,1734372642670,-500.0,0.00024657,4]
[345590338,1734372642680,-500.0,0.00024657,4]
[345590340,1734372642689,-1000.0,0.00024657,2]
[345590343,1734372642698,-500.0,0.00024657,4]
[345590344,1734372642707,-500.0,0.00024657,4]
[345590345,1734372642716,-500.0,0.00024657,4]
[345590346,1734372642725,-500.0,0.00024657,4]
[345590347,1734372642734,-353.0,0.00024657,4]
[345590348,1734372642743,-500.0,0.00024657,4]
[345590349,1734372642752,-551.77954079,0.00024657,4]
[345590350,1734372642761,-500.0,0.00024657,4]
[345590351,1734372642770,-500.0,0.00024657,4]
[345590352,1734372642779,-500.0,0.00024657,4]
[345590353,1734372642789,-500.0,0.00024657,4]
[345590354,1734372642798,-500.0,0.00024657,4]
[345590355,1734372642807,-500.0,0.00024657,4]
[345590357,1734372642816,-526.63603414,0.00024657,4]
[345590359,1734372642825,-500.0,0.00024657,4]
[345590362,1734372642834,-500.0,0.00024657,4]
[345590364,1734372642844,-500.0,0.00024657,4]
[345590367,1734372642853,-500.0,0.00024657,4]
[345590371,1734372642863,-500.0,0.00024657,4]
[345590374,1734372642872,-533.77026769,0.00024657,4]
[345590376,1734372642882,-500.0,0.00024657,4]
[345590380,1734372642892,-1000.0,0.00024657,4]
[345590382,1734372642901,-500.0,0.00024657,4]
[345590385,1734372642917,-500.0,0.00024657,4]
[345590389,1734372642926,-500.0,0.00024657,4]
[345590391,1734372642935,-500.0,0.00024657,4]
[345590394,1734372642944,-500.0,0.00024657,4]
[345590397,1734372642953,-500.0,0.00024657,4]
[345590400,1734372642963,-507.61454599,0.00024657,4]
[345590403,1734372642972,-500.0,0.00024657,4]
[345590406,1734372642982,-511.61179746,0.00024657,4]
[345590409,1734372642991,-500.0,0.00024657,4]
[345590412,1734372643000,-500.0,0.00024657,4]
[345590415,1734372643009,-500.0,0.00024657,4]
[345590418,1734372643018,-500.0,0.00024657,4]
[345590421,1734372643027,-500.0,0.00024657,4]
[345590424,1734372643036,-500.0,0.00024657,4]
[345590427,1734372643045,-500.0,0.00024657,4]
[345590430,1734372643054,-500.0,0.00024657,4]
[345590433,1734372643063,-500.0,0.00024657,4]
[345590436,1734372643072,-526.71,0.00024657,4]
[345590439,1734372643081,-2631.42,0.00024657,4]
[345590442,1734372643090,-2631.42,0.00024657,4]
[345590445,1734372643099,-500.0,0.00024657,4]
[345590448,1734372643108,-500.0,0.00024657,4]
[345590451,1734372643117,-500.0,0.00024657,4]
[345590454,1734372643126,-636.08486581,0.00024657,4]
[345590457,1734372643135,-500.0,0.00024657,4]
[345590460,1734372643144,-500.0,0.00024657,4]
[345590463,1734372643162,-500.0,0.00024657,4]
[345590466,1734372643174,-500.0,0.00024657,4]
[345590469,1734372643183,-500.0,0.00024657,4]
[345590471,1734372643192,-500.0,0.00024657,4]
[345590474,1734372643202,-500.0,0.00024657,4]
[345590476,1734372643213,-500.0,0.00024657,4]
[345590479,1734372643222,-500.0,0.00024657,4]
[345590482,1734372643231,-185.40803482,0.00024657,4]
[345590485,1734372643242,-552.32133348,0.00024657,4]
[345590488,1734372643252,-500.0,0.00024657,4]
[345590491,1734372643261,-500.0,0.00024657,4]
[345590494,1734372643270,-599.19,0.00024657,4]
[345590497,1734372643280,-500.0,0.00024657,4]
[345590500,1734372643289,-500.0,0.00024657,4]
[345590503,1734372643299,-500.0,0.00024657,4]
[345590507,1734372643308,-305.82222517,0.00024657,4]
[345590510,1734372643317,-500.0,0.00024657,4]
[345590512,1734372643326,-500.0,0.00024657,4]
[345590515,1734372643335,-500.0,0.00024657,4]
[345590517,1734372643344,-500.0,0.00024657,4]
[345590520,1734372643353,-500.0,0.00024657,4]
[345590522,1734372643363,-500.0,0.00024657,4]
[345590524,1734372643372,-500.0,0.00024657,4]
[345590526,1734372643382,-500.0,0.00024657,4]
[345590528,1734372643391,-500.0,0.00024657,4]
[345590530,1734372643400,-500.0,0.00024657,4]
[345590532,1734372643415,-500.0,0.00024657,4]
[345590534,1734372643424,-500.0,0.00024657,4]
[345590536,1734372643433,-524.90428301,0.00024657,4]
[345590538,1734372643442,-500.0,0.00024657,4]
[345590540,1734372643451,-500.0,0.00024657,4]
[345590542,1734372643459,-704.96,0.00024657,4]
[345590544,1734372643469,-704.96,0.00024657,4]
[345590546,1734372643478,-552.96,0.00024657,4]
[345590548,1734372643487,-647.24,0.00024657,4]
[345590550,1734372643495,-647.24,0.00024657,4]
[345590552,1734372643507,-500.0,0.00024657,4]
[345590554,1734372643518,-500.0,0.00024657,4]
[345590556,1734372643527,-500.0,0.00024657,4]
[345590558,1734372643535,-500.0,0.00024657,4]
[345590560,1734372643544,-500.0,0.00024657,4]
[345590562,1734372643554,-500.0,0.00024657,4]
[345590564,1734372643564,-500.0,0.00024657,4]
[345590566,1734372643574,-500.0,0.00024657,4]
[345590568,1734372643584,-500.0,0.00024657,4]
[345590570,1734372643593,-500.0,0.00024657,4]
[345590572,1734372643602,-500.0,0.00024657,4]
[345590574,1734372643612,-501.02188555,0.00024673,2]
[345590575,1734372643621,-356.12484356,0.00024673,2]
[345590577,1734372643630,-500.0,0.00024673,2]
[345590579,1734372643640,-261.24644976,0.00024673,2]
[345590581,1734372643649,-203.79496158,0.00024673,2]
[345590584,1734372643663,-161.22251458,0.00024673,2]
[345590586,1734372643673,-481.25310151,0.00024673,2]
[345590588,1734372643683,-406.5269031,0.00024673,2]
[345590590,1734372643692,-1644.72354274,0.00024687,2]
[345590591,1734372643702,-500.0,0.000247,9]
[345590594,1734372643712,-1330.44,0.0002471,2]
[345590595,1734372643721,-3484.19355038,0.0002475,2]
[345590598,1734372643731,-1172.0,0.0002475,2]
[345590599,1734372643741,-1791.86794,0.0002475,2]
[345590602,1734372643750,-206.78,0.00024756,2]
[345590603,1734372643760,-1644.72354274,0.00024758,2]
[345590605,1734372643770,-425.01395621,0.00024776,2]
[345590607,1734372643780,-150.0,0.00024778,4]
[345590610,1734372643790,-1649.9318,0.00024778,2]
[345590624,1734372643921,-500.0,0.00024781,7]
[345590626,1734372643932,-500.0,0.00024799,4]
[345590628,1734372643942,-20799.41701368,0.000248,2]
[345590630,1734372643952,-639.79767401,0.000248,2]
[345590632,1734372643962,-1156.0,0.000248,9]
[345590634,1734372643972,-1644.72354274,0.00024829,2]
[345590636,1734372643983,-623.51811971,0.00024843,10]
[345590638,1734372643992,-623.51811971,0.00024843,10]
[345590640,1734372644003,-623.51811971,0.00024846,10]
[345590642,1734372644013,-623.51811971,0.00024855,10]
[345590644,1734372644022,-1091.18,0.00024869,2]
[345590646,1734372644032,-800.0,0.00024877,2]
[345590648,1734372644041,-500.0,0.00024877,4]
[345590650,1734372644051,-500.0,0.00024877,2]
[345590652,1734372644060,-500.0,0.00024877,4]
[345590654,1734372644070,-217.99076431,0.00024878,4]
[345590656,1734372644080,-793.36805076,0.00024879,2]
[345590658,1734372644089,-1331.41332035,0.0002488,2]
[345590660,1734372644099,-623.51811971,0.00024886,10]
[345590662,1734372644107,-793.36805076,0.0002489,2]
[345590663,1734372644117,-214.25467095,0.00024895,14]
[345590665,1734372644126,-623.51811971,0.00024897,10]
[345590667,1734372644136,-613.64,0.00024897,4]
[345590669,1734372644145,-500.0,0.00024897,4]
[345590671,1734372644154,-500.0,0.00024897,4]
[345590673,1734372644170,-500.0,0.00024897,4]
[345590675,1734372644179,-500.0,0.00024897,4]
[345590677,1734372644188,-500.0,0.00024897,4]
[345590679,1734372644198,-329.86499718,0.00024897,4]
[345590681,1734372644208,-500.0,0.00024897,4]
[345590683,1734372644217,-500.0,0.00024897,4]
[345590685,1734372644227,-500.0,0.00024897,4]
[345590687,1734372644237,-1000.0,0.00024897,2]
[345590689,1734372644247,-541.6694,0.00024897,4]
[345590691,1734372644257,-500.0,0.00024897,4]
[345590693,1734372644267,-500.0,0.00024897,4]
[345590695,1734372644277,-1000.0,0.00024897,4]
[345590698,1734372644286,-500.0,0.00024897,4]
[345590700,1734372644296,-500.0,0.00024897,4]
[345590702,1734372644305,-500.0,0.00024897,4]
[345590704,1734372644315,-500.0,0.00024897,4]
[345590706,1734372644324,-32869.4383,0.00024898,2]
[345590708,1734372644333,-169.70996059,0.00024899,2]
[345590709,1734372644343,-415.37259518,0.00024899,2]
[345590711,1734372644353,-169.70996058,0.00024899,2]
[345590713,1734372644362,-415.37259518,0.000249,2]
[345590715,1734372644372,-169.70996058,0.000249,2]
[345590717,1734372644381,-1138.7787,0.000249,2]
[345590719,1734372644391,-44001.0853,0.000249,2]
[345590721,1734372644400,-1000.0,0.000249,2]
[345590723,1734372644414,-500.0,0.000249,2]
[345590725,1734372644424,-259.53,0.000249,31]
[345590726,1734372644433,-259.53,0.000249,31]
[345590728,1734372644442,-259.53,0.000249,31]
[345590730,1734372644451,-259.53,0.000249,31]
[345590732,1734372644460,-259.53,0.000249,31]
[345590734,1734372644469,-259.53,0.000249,31]
[345590736,1734372644478,-259.53,0.000249,31]
[345590738,1734372644487,-259.53,0.000249,31]
[345590740,1734372644497,-259.53,0.000249,31]
[345590742,1734372644506,-259.53,0.000249,31]
[345590744,1734372644516,-259.53,0.000249,31]
[345590746,1734372644525,-259.53,0.000249,31]
[345590747,1734372644535,-259.53,0.000249,31]
[345590749,1734372644544,-259.53,0.000249,31]
[345590751,1734372644553,-259.53,0.000249,31]
[345590753,1734372644562,-259.53,0.000249,31]
[345590755,1734372644571,-169.70996058,0.000249,2]
[345590757,1734372644582,-700.03,0.000249,2]
[345590759,1734372644591,-158.52960383,0.000249,2]
[345590761,1734372644600,-1644.72354274,0.000249,2]
[345590763,1734372644609,-151.06750231,0.000249,2]
[345590765,1734372644618,-834.36110435,0.000249,2]
[345590767,1734372644628,-463.81038486,0.000249,2]
[345590769,1734372644638,-1000.0,0.000249,2]
[345590771,1734372644647,-793.36805076,0.000249,2]
[345590773,1734372644660,-429.01855292,0.000249,2]
[345590774,1734372644669,-6841.0,0.00024959,2]
[345590776,1734372644678,-2110.0,0.00024959,2]
[345590778,1734372644688,-159.89953458,0.00024973,2]
[345590780,1734372644698,-388.48474492,0.00024973,2]
[345590782,1734372644709,-500.88378785,0.00024973,2]
[345590784,1734372644718,-452.28420699,0.00024979,4]
[345590786,1734372644727,-500.0,0.00024979,4]
[345590788,1734372644736,-500.0,0.00024979,4]
[345590790,1734372644746,-500.0,0.00024979,4]
[345590792,1734372644756,-2631.42,0.00024979,4]
[345590794,1734372644765,-500.0,0.00024979,4]
[345590796,1734372644775,-500.0,0.00024979,4]
[345590798,1734372644785,-163.15,0.00024979,4]
[345590800,1734372644795,-500.0,0.00024979,4]
[345590802,1734372644804,-265.24216919,0.00024979,4]
[345590804,1734372644815,-500.0,0.00024979,4]
[345590806,1734372644825,-704.96,0.00024979,4]
[345590808,1734372644834,-647.24,0.00024979,4]
[345590810,1734372644843,-500.0,0.00024979,4]
[345590811,1734372644854,-6324.15,0.0002498,2]
[345590813,1734372644863,-1123.94,0.0002498,2]
[345590815,1734372644872,-19194.75,0.0002498,2]
[345590817,1734372644881,-172.37032654,0.00024986,4]
[345590819,1734372644891,-150.0,0.00024986,4]
[345590821,1734372644901,-150.0,0.00024986,4]
[345590823,1734372644915,-192.62018324,0.0002499,2]
[345590825,1734372644925,-192.62018324,0.0002499,2]
[345590827,1734372644934,-1526.5309133,0.00024995,2]
[345590829,1734372644943,-1403.8619436,0.00024995,2]
[345590831,1734372644953,-1281.192974,0.00024995,2]
[345590833,1734372644962,-1158.5240043,0.00024995,2]
[345590835,1734372644973,-1035.8550346,0.00024995,2]
[345590837,1734372644982,-913.1860649,0.00024995,2]
[345590839,1734372644992,-761.61,0.00024997,2]
[345590841,1734372645001,-150.0,0.00024998,30]
[345590843,1734372645011,-1000.0,0.00024998,2]
[345590845,1734372645020,-613.64,0.00024998,4]
[345590847,1734372645030,-500.0,0.00024998,4]
[345590849,1734372645039,-500.0,0.00024998,4]
[345590851,1734372645048,-500.0,0.00024998,4]
[345590853,1734372645058,-500.0,0.00024998,4]
[345590854,1734372645067,-500.0,0.00024998,2]
[345590856,1734372645077,-500.0,0.00024998,4]
[345590858,1734372645087,-500.0,0.00024998,4]
[345590860,1734372645096,-500.0,0.00024998,4]
[345590862,1734372645106,-500.0,0.00024998,4]
[345590864,1734372645116,-500.0,0.00024998,4]
[345590866,1734372645125,-500.0,0.00024998,4]
[345590868,1734372645135,-2957.99,0.00024998,4]
[345590870,1734372645144,-500.0,0.00024998,4]
[345590872,1734372645160,-500.0,0.00024998,4]
[345590874,1734372645169,-1000.0,0.00024998,2]
[345590876,1734372645179,-500.0,0.00024998,4]
[345590878,1734372645188,-500.0,0.00024998,4]
[345590880,1734372645198,-610.36,0.00024998,4]
[345590882,1734372645208,-500.0,0.00024998,4]
[345590884,1734372645217,-500.0,0.00024998,4]
[345590886,1734372645228,-1000.0,0.00024998,4]
[345590888,1734372645237,-500.0,0.00024998,4]
[345590890,1734372645248,-500.0,0.00024998,4]
[345590892,1734372645257,-500.0,0.00024998,4]
[345590893,1734372645266,-387.6,0.00024998,4]
[345590894,1734372645276,-500.0,0.00024998,4]
[345590895,1734372645286,-2631.42,0.00024998,4]
[345590896,1734372645296,-283.95,0.00024998,4]
[345590897,1734372645305,-500.0,0.00024998,4]
[345590898,1734372645315,-552.58,0.00024998,4]
[345590899,1734372645325,-500.0,0.00024998,4]
[345590900,1734372645335,-500.0,0.00024998,4]